lending/lending_fUSD_20250210
["ID","MTS","AMOUNT","RATE_DAILY","PERIOD"]
[352653566,1739217085095,-797.43,0.0001178,2]
[352653567,1739217085105,-500.0,0.0001178,2]
[352653568,1739217085115,-503.81,0.0001178,2]
[352653569,1739217085126,-688.07,0.0001178,2]
[352653570,1739217085136,-500.0,0.0001178,2]
[352653571,1739217085146,-1205.84,0.0001178,2]
[352653572,1739217085156,-806.41,0.0001178,2]
[352653573,1739217085166,-500.0,0.0001178,2]
[352653574,1739217085176,-500.0,0.0001178,2]
[352653575,1739217085186,-500.0,0.0001178,2]
[352653576,1739217085195,-500.0,0.0001178,2]
[352653577,1739217085205,-735.56,0.0001178,2]
[352653578,1739217085214,-798.49,0.0001178,2]
[352653579,1739217085223,-847.34,0.0001178,2]
[352653580,1739217085233,-500.0,0.0001178,2]
[352653581,1739217085242,-548.6,0.0001178,2]
[352653582,1739217085252,-671.06,0.0001178,2]
[352653583,1739217085262,-500.0,0.0001178,2]
[352653584,1739217085271,-857.26,0.0001178,2]
[352653585,1739217085282,-805.28,0.0001178,2]
[352653586,1739217085293,-737.36,0.0001178,2]
[352653587,1739217085303,-500.0,0.0001178,2]
[352653588,1739217085313,-686.24,0.0001178,2]
[352653589,1739217085323,-899.13,0.0001178,2]
[352653590,1739217085333,-752.18,0.0001178,2]
[352653591,1739217085342,-500.0,0.0001178,2]
[352653592,1739217085352,-500.0,0.0001178,2]
[352653593,1739217085361,-500.0,0.0001178,2]
[352653594,1739217085371,-500.0,0.0001178,2]
[352653595,1739217085380,-939.92,0.0001178,2]
[352653596,1739217085389,-817.55,0.0001178,2]
[352653597,1739217085399,-993.53,0.0001178,2]
[352653598,1739217085409,-903.04,0.0001178,2]
[352653599,1739217085419,-1409.06,0.0001178,2]
[352653600,1739217085429,-646.34,0.0001178,2]
[352653601,1739217085439,-813.76,0.0001178,2]
[352653602,1739217085448,-525.71,0.0001178,2]
[352653603,1739217085458,-835.08,0.0001178,2]
[352653604,1739217085467,-500.0,0.0001178,2]
[352653605,1739217085597,-500.0,0.0001178,2]
[352653606,1739217085607,-927.03,0.0001178,2]
[352653607,1739217085617,-1414.15,0.0001178,2]
[352653608,1739217085627,-974.35,0.0001178,2]
[352653609,1739217085638,-500.0,0.0001178,2]
[352653610,1739217085648,-613.74286417,0.0001178,2]
[352653611,1739217085658,-1339.11,0.0001178,2]
[352653612,1739217085669,-1394.54,0.0001178,2]
[352653613,1739217085679,-1459.18,0.0001178,2]
[352653614,1739217085688,-500.0,0.0001178,2]
[352653615,1739217085697,-1307.0,0.0001178,2]
[352653616,1739217085707,-713.9,0.0001178,2]
[352653617,1739217085716,-669.6,0.0001178,2]
[352653618,1739217085726,-500.0,0.0001178,2]
[352653619,1739217085736,-908.17,0.0001178,2]
[352653620,1739217085745,-792.5,0.0001178,2]
[352653621,1739217085755,-709.69,0.0001178,2]
[352653622,1739217085767,-500.0,0.0001178,2]
[352653623,1739217085777,-861.34,0.0001178,2]
[352653624,1739217085787,-618.61,0.0001178,2]
[352653625,1739217085798,-1380.24,0.0001178,2]
[352653626,1739217085808,-968.54,0.0001178,2]
[352653627,1739217085820,-2373.67,0.0001178,2]
[352653628,1739217085830,-500.0,0.0001178,2]
[352653629,1739217085841,-183.70659414,0.0001178,2]
[352653630,1739217085852,-3706.07,0.0001178,2]
[352653631,1739217085862,-715.18,0.0001178,2]
[352653632,1739217085872,-812.26,0.0001178,2]
[352653633,1739217085882,-500.0,0.0001178,2]
[352653634,1739217085893,-571.93,0.0001178,2]
[352653635,1739217085904,-503.36,0.0001178,2]
[352653636,1739217085916,-2795.86,0.0001178,2]
[352653637,1739217085927,-1463.82,0.0001178,2]
[352653638,1739217085938,-500.0,0.0001178,2]
[352653639,1739217085949,-1115.84,0.0001178,2]
[352653640,1739217085960,-500.0,0.0001178,2]
[352653641,1739217085970,-500.0,0.0001178,2]
[352653642,1739217085981,-769.96,0.0001178,2]
[352653643,1739217085991,-748.1,0.0001178,2]
[352653644,1739217086001,-500.0,0.0001178,2]
[352653645,1739217086011,-1954.18,0.0001178,2]
[352653646,1739217086022,-3523.07,0.0001178,2]
[352653647,1739217086034,-832.11,0.0001178,2]
[352653648,1739217086047,-718.12,0.0001178,2]
[352653649,1739217086056,-834.26,0.0001178,2]
[352653650,1739217086066,-1677.1,0.0001178,2]
[352653651,1739217086078,-1508.82,0.0001178,2]
[352653652,1739217086089,-2173.12,0.0001178,2]
[352653653,1739217086099,-637.11,0.0001178,2]
[352653654,1739217086109,-500.0,0.0001178,2]
[352653655,1739217086119,-500.0,0.0001178,2]
[352653656,1739217086130,-1398.39,0.0001178,2]
[352653657,1739217086140,-507.04939696,0.0001178,2]
[352653658,1739217086151,-1398.24,0.0001178,2]
[352653659,1739217086163,-1741.14,0.0001178,2]
[352653660,1739217086173,-500.0,0.0001178,2]
[352653661,1739217086184,-1494.55,0.0001178,2]
[352653662,1739217086195,-587.05,0.0001178,2]
[352653663,1739217086205,-500.0,0.0001178,2]
[352653664,1739217086215,-500.0,0.0001178,2]
[352653665,1739217086225,-624.81,0.0001178,2]
[352653666,1739217086236,-1199.22,0.0001178,2]
[352653667,1739217086246,-1979.93,0.0001178,2]
[352653668,1739217086256,-802.65,0.0001178,2]
[352653669,1739217086267,-1405.04,0.0001178,2]
[352653670,1739217086276,-2187.78,0.0001178,2]
[352653671,1739217086286,-1056.67,0.0001178,2]
[352653672,1739217086296,-2701.47,0.0001178,2]
[352653673,1739217086306,-595.63,0.0001178,2]
[352653674,1739217086316,-930.08,0.0001178,2]
[352653675,1739217086326,-1147.5,0.0001178,2]
[352653676,1739217086335,-964.23,0.0001178,2]
[352653677,1739217086345,-704.54,0.0001178,2]
[352653678,1739217086354,-699.04,0.0001178,2]
[352653679,1739217086364,-963.91,0.0001178,2]
[352653680,1739217086375,-562.5,0.0001178,2]
[352653681,1739217086384,-1797.41,0.0001178,2]
[352653682,1739217086394,-2947.91,0.0001178,2]
[352653683,1739217086403,-1804.58,0.0001178,2]
[352653684,1739217086413,-1036.2,0.0001178,2]
[352653685,1739217086423,-1449.23,0.0001178,2]
[352653686,1739217086433,-1222.64,0.0001178,2]
[352653687,1739217086442,-742.77,0.0001178,2]
[352653688,1739217086453,-2002.97,0.0001178,2]
[352653689,1739217086463,-500.0,0.0001178,2]
[352653690,1739217086473,-500.0,0.0001178,3]
[352653691,1739217086483,-500.0,0.0001178,2]
[352653692,1739217086492,-796.24,0.0001178,2]
[352653693,1739217086503,-645.83,0.0001178,2]
[352653694,1739217086513,-970.47,0.0001178,2]
[352653695,1739217086522,-500.0,0.0001178,2]
[352653696,1739217086533,-625.0,0.0001178,2]
[352653697,1739217086543,-500.0,0.0001178,2]
[352653698,1739217086554,-500.0,0.0001178,2]
[352653699,1739217086566,-716.69,0.0001178,2]
[352653700,1739217086576,-1648.9,0.0001178,2]
[352653701,1739217086585,-1668.82,0.0001178,2]
[352653702,1739217086596,-500.0,0.0001178,2]
[352653703,1739217086605,-1844.01,0.0001178,2]
[352653704,1739217086615,-1966.76,0.0001178,2]
[352653705,1739217086624,-500.0,0.0001178,2]
[352653706,1739217086635,-500.32,0.0001178,2]
[352653707,1739217086645,-1124.71,0.0001178,2]
[352653708,1739217086654,-706.93,0.0001178,2]
[352653709,1739217086664,-500.0,0.0001178,2]
[352653710,1739217086674,-2457.08,0.0001178,2]
[352653711,1739217086684,-500.0,0.0001178,2]
[352653712,1739217086693,-1009.57,0.0001178,2]
[352653713,1739217086703,-500.0,0.0001178,2]
[352653714,1739217086713,-2032.53,0.0001178,2]
[352653715,1739217086723,-1156.44,0.0001178,2]
[352653716,1739217086733,-934.8,0.0001178,2]
[352653717,1739217086743,-2081.61,0.0001178,2]
[352653718,1739217086753,-583.33,0.0001178,2]
[352653719,1739217086763,-683.87,0.0001178,2]
[352653720,1739217086773,-810.76,0.0001178,2]
[352653721,1739217086783,-1603.74,0.0001178,2]
[352653722,1739217086793,-1979.23,0.0001178,2]
[352653723,1739217086803,-3155.5,0.0001178,2]
[352653724,1739217086813,-520.83,0.0001178,2]
[352653725,1739217086825,-2265.86,0.0001178,2]
[352653726,1739217086835,-1747.24,0.0001178,2]
[352653727,1739217086853,-2237.83,0.0001178,2]
[352653728,1739217086863,-1675.96,0.0001178,2]
[352653729,1739217086872,-378.4571934,0.0001178,2]
[352653730,1739217086881,-1819.33,0.0001178,2]
[352653731,1739217086891,-500.0,0.0001178,2]
[352653732,1739217086901,-541.66,0.0001178,2]
[352653733,1739217086912,-1574.7,0.0001178,2]
[352653734,1739217086922,-530.6,0.0001178,2]
[352653735,1739217086932,-837.21,0.0001178,2]
[352653736,1739217086941,-1491.31,0.0001178,2]
[352653737,1739217086951,-1019.21,0.0001178,2]
[352653738,1739217086961,-500.0,0.0001178,2]
[352653739,1739217086971,-2726.72,0.0001178,2]
[352653740,1739217086980,-1880.79,0.0001178,2]
[352653741,1739217086990,-517.16,0.0001178,2]
[352653742,1739217087000,-1527.87,0.0001178,2]
[352653743,1739217087013,-2139.45,0.0001178,2]
[352653744,1739217087022,-500.0,0.0001178,2]
[352653745,1739217087032,-4291.63,0.0001178,2]
[352653746,1739217087042,-500.0,0.0001178,2]
[352653747,1739217087051,-1061.69,0.0001178,2]
[352653748,1739217087062,-860.76,0.0001178,2]
[352653749,1739217087071,-500.0,0.0001178,2]
[352653750,1739217087081,-2344.73,0.0001178,2]
[352653751,1739217087091,-1443.4,0.0001178,2]
[352653752,1739217087101,-500.0,0.0001178,2]
[352653753,1739217087111,-500.0,0.0001178,2]
[352653754,1739217087120,-3176.66,0.0001178,2]
[352653755,1739217087130,-4387.49,0.0001178,2]
[352653756,1739217087139,-8593.09,0.0001178,2]
[352653757,1739217087149,-2245.56,0.0001178,2]
[352653758,1739217087159,-3099.9,0.0001178,2]
[352653759,1739217087170,-500.0,0.0001178,2]
[352653760,1739217087182,-1243.47,0.0001178,2]
[352653761,1739217087193,-500.0,0.0001178,2]
[352653762,1739217087204,-1144.1,0.0001178,2]
[352653763,1739217087214,-500.0,0.0001178,2]
[352653764,1739217087224,-7758.75,0.0001178,2]
[352653765,1739217087235,-1954.77,0.0001178,2]
[352653766,1739217087244,-500.0,0.0001178,2]
[352653767,1739217087254,-500.0,0.0001178,2]
[352653768,1739217087264,-500.0,0.0001178,2]
[352653769,1739217087274,-2839.44,0.0001178,2]
[352653770,1739217087283,-500.0,0.0001178,2]
[352653771,1739217087295,-505.81,0.0001178,2]
[352653772,1739217087304,-2675.13,0.0001178,2]
[352653773,1739217087314,-631.34,0.0001178,2]
[352653774,1739217087323,-2178.42,0.0001178,2]
[352653775,1739217087334,-236.62981147,0.0001178,2]
[352653776,1739217087343,-500.0,0.0001178,2]
[352653777,1739217087353,-1372.0,0.0001178,2]
[352653778,1739217087363,-819.49,0.0001178,2]
[352653779,1739217087373,-151.0,0.0001178,2]
[352653780,1739217087383,-645.83,0.0001178,2]
[352653781,1739217087392,-3308.63,0.0001178,2]
[352653782,1739217087401,-1788.99,0.0001178,2]
[352653783,1739217087410,-500.0,0.0001178,2]
[352653784,1739217087420,-543.83,0.0001178,2]
[352653785,1739217087429,-500.0,0.0001178,2]
[352653786,1739217087439,-549.60806046,0.0001178,2]
[352653787,1739217087449,-1162.59,0.0001178,2]
[352653788,1739217087459,-1086.68,0.0001178,2]
[352653789,1739217087468,-291.760022,0.0001178,2]
[352653790,1739217087478,-500.0,0.0001178,2]
[352653791,1739217087488,-500.0,0.0001178,2]
[352653792,1739217087500,-500.0,0.0001178,2]
[352653793,1739217087510,-1804.05,0.0001178,2]
[352653794,1739217087645,-5188.0,0.0001178,2]
[352653795,1739217087655,-2392.85,0.0001178,2]
[352653796,1739217087664,-2313.42,0.0001178,2]
[352653797,1739217087674,-749.16,0.0001178,2]
[352653798,1739217087684,-500.0,0.0001178,2]
[352653799,1739217087693,-500.0,0.0001178,2]
[352653800,1739217087703,-2419.09,0.0001178,2]
[352653801,1739217087713,-500.0,0.0001178,2]
[352653802,1739217087723,-1632.19,0.0001178,2]
[352653803,1739217087733,-766.68,0.0001178,2]
[352653804,1739217087743,-500.0,0.0001178,2]
[352653805,1739217087753,-2781.55,0.0001178,2]
[352653806,1739217087764,-599.54,0.0001178,2]
[352653807,1739217087776,-3815.56,0.0001178,2]
[352653808,1739217087786,-702.71,0.0001178,2]
[352653809,1739217087796,-899.39,0.0001178,2]
[352653810,1739217087805,-1221.97,0.0001178,2]
[352653811,1739217087816,-500.0,0.0001178,2]
[352653812,1739217087826,-609.96,0.0001178,2]
[352653813,1739217087835,-1855.22,0.0001178,2]
[352653814,1739217087845,-3066.98,0.0001178,2]
[352653815,1739217087856,-568.31,0.0001178,2]
[352653816,1739217087865,-500.0,0.0001178,2]
[352653817,1739217087875,-500.0,0.0001178,2]
[352653818,1739217087884,-1154.02,0.0001178,2]
[352653819,1739217087893,-500.0,0.0001178,2]
[352653820,1739217087903,-621.93,0.0001178,2]
[352653821,1739217087914,-493.92719694,0.0001178,2]
[352653822,1739217087925,-1663.55,0.0001178,2]
[352653823,1739217087935,-1470.96,0.0001178,2]
[352653824,1739217087945,-1691.99,0.0001178,2]
[352653825,1739217087956,-1448.93,0.0001178,2]
[352653826,1739217087966,-673.88,0.0001178,2]
[352653827,1739217087976,-3129.14,0.0001178,2]
[352653828,1739217087986,-2320.87,0.0001178,2]
[352653829,1739217087996,-500.0,0.0001178,2]
[352653830,1739217088007,-995.88,0.0001178,2]
[352653831,1739217088017,-500.0,0.0001178,2]
[352653832,1739217088027,-2618.51,0.0001178,2]
[352653833,1739217088036,-2818.9,0.0001178,2]
[352653834,1739217088046,-993.55,0.0001178,2]
[352653835,1739217088057,-2748.46,0.0001178,2]
[352653836,1739217088067,-500.0,0.0001178,2]
[352653837,1739217088076,-493.44091216,0.0001178,2]
[352653838,1739217088087,-652.35,0.0001178,2]
[352653839,1739217088097,-1579.61,0.0001178,2]
[352653840,1739217088106,-310.09096115,0.0001178,2]
[352653841,1739217088116,-712.02,0.0001178,2]
[352653842,1739217088127,-2898.79,0.0001178,2]
[352653843,1739217088136,-3025.96,0.0001178,2]
[352653844,1739217088145,-848.72,0.0001178,2]
[352653845,1739217088154,-750.4,0.0001178,2]
[352653846,1739217088163,-608.49,0.0001178,2]
[352653847,1739217088173,-500.0,0.0001178,2]
[352653848,1739217088182,-1361.68,0.0001178,2]
[352653849,1739217088192,-1503.79,0.0001178,2]
[352653850,1739217088210,-500.0,0.0001178,2]
[352653851,1739217088232,-1199.24,0.0001178,2]
[352653852,1739217088253,-500.0,0.0001178,2]
[352653853,1739217088274,-367.0,0.000118,2]
[352653854,1739217088298,-747.0,0.000118,2]
[352653855,1739217088321,-231.0,0.000118,2]
[352653856,1739217088343,-1515.0,0.000119,4]
[352653857,1739217088365,-202.23921636,0.000119,2]
[352653858,1739217088387,-161.383737,0.00011917,2]
[352653859,1739217088397,-161.383739,0.00011917,2]
[352653860,1739217088407,-641.621339,0.00011917,2]
[352653861,1739217088417,-563.348585,0.00011917,2]
[352653862,1739217088426,-500.0,0.00011917,2]
[352653863,1739217088436,-500.0,0.00011917,2]
[352653864,1739217088445,-500.0,0.00011917,2]
[352653865,1739217088455,-500.0,0.00011917,2]
[352653866,1739217088464,-500.0,0.00011917,2]
[352653867,1739217088473,-500.0,0.00011917,2]
[352653868,1739217088483,-500.0,0.00011917,2]
[352653869,1739217088492,-500.0,0.00011917,2]
[352653870,1739217088502,-500.0,0.00011917,2]
[352653871,1739217088511,-500.0,0.00011917,2]
[352653872,1739217088520,-500.0,0.00011917,2]
[352653873,1739217088530,-541.12,0.00011917,2]
[352653874,1739217088541,-597.05,0.00011917,2]
[352653875,1739217088551,-500.0,0.00011917,2]
[352653876,1739217088564,-500.0,0.00011917,2]
[352653877,1739217088573,-500.0,0.00011917,2]
[352653878,1739217088582,-500.0,0.00011917,2]
[352653879,1739217088592,-540.53,0.00011917,2]
[352653880,1739217088607,-500.0,0.00011917,2]
[352653881,1739217088630,-500.0,0.00011917,2]
[352653882,1739217088649,-500.0,0.00011917,2]
[352653883,1739217088670,-502.57,0.00011917,2]
[352653884,1739217088686,-1200.0,0.00011917,2]
[352653885,1739217088705,-272.19433629,0.00011917,2]
[352653886,1739217088725,-629.10487755,0.00011917,2]
[352653887,1739217088744,-500.0,0.00011917,2]
[352653888,1739217088764,-531.44,0.00011917,2]
[352653889,1739217088783,-500.0,0.00011917,2]
[352653890,1739217088803,-810.48,0.00011917,2]
[352653891,1739217088818,-500.0,0.00011917,2]
[352653892,1739217088838,-500.0,0.00011917,2]
[352653893,1739217088852,-331.92552731,0.00011917,2]
[352653894,1739217088872,-500.0,0.00011917,2]
[352653895,1739217088886,-512.43,0.00011917,2]
[352653896,1739217088903,-500.0,0.00011917,2]
[352653897,1739217088918,-500.0,0.00011917,2]
[352653898,1739217088933,-609.09,0.00011917,2]
[352653899,1739217088947,-500.0,0.00011917,2]
[352653900,1739217088962,-500.0,0.00011917,2]
[352653901,1739217088977,-295.32418714,0.00011917,2]
[352653902,1739217088992,-745.2,0.00011917,2]
[352653903,1739217089008,-500.0,0.00011917,2]
[352653904,1739217089022,-500.0,0.00011917,2]
[352653905,1739217089037,-820.08,0.00011917,2]
[352653906,1739217089052,-500.0,0.00011917,2]
[352653907,1739217089067,-500.0,0.00011917,2]
[352653908,1739217089085,-500.0,0.00011917,2]
[352653909,1739217089101,-1862.78,0.00011917,2]
[352653910,1739217089116,-500.0,0.00011917,2]
[352653911,1739217089130,-991.22,0.00011917,2]
[352653912,1739217089145,-500.0,0.00011917,2]
[352653913,1739217089161,-500.0,0.00011917,2]
[352653914,1739217089175,-951.4,0.00011917,2]
[352653915,1739217089191,-874.12,0.00011917,2]
[352653916,1739217089206,-591.78,0.00011917,2]
[352653917,1739217089220,-1448.37,0.00011917,2]
[352653918,1739217089234,-572.87,0.00011917,2]
[352653919,1739217089249,-1014.74,0.00011917,2]
[352653920,1739217089263,-500.0,0.00011917,2]
[352653921,1739217089278,-1242.07,0.00011917,2]
[352653922,1739217089293,-500.0,0.00011917,2]
[352653923,1739217089307,-589.74,0.00011917,2]
[352653924,1739217089321,-500.0,0.00011917,2]
[352653925,1739217089336,-500.0,0.00011917,2]
[352653926,1739217089350,-500.0,0.00011917,2]
[352653927,1739217089364,-549.56,0.00011917,2]
[352653928,1739217089379,-682.19,0.00011917,2]
[352653929,1739217089393,-500.0,0.00011917,2]
[352653930,1739217089408,-628.64,0.00011917,2]
[352653931,1739217089421,-500.0,0.00011917,2]
[352653932,1739217089436,-500.0,0.00011917,2]
[352653933,1739217089450,-500.0,0.00011917,2]
[352653934,1739217089464,-910.68,0.00011917,2]
[352653935,1739217089483,-718.31,0.00011917,2]
[352653936,1739217089498,-1094.62,0.00011917,2]
[352653937,1739217089514,-758.66,0.00011917,2]
[352653938,1739217089529,-500.0,0.00011917,2]
[352653939,1739217089544,-846.94,0.00011917,2]
[352653940,1739217089562,-923.59,0.00011917,2]
[352653941,1739217089577,-500.0,0.00011917,2]
[352653942,1739217089592,-500.0,0.00011917,2]
[352653943,1739217089607,-942.9,0.00011917,2]
[352653944,1739217089622,-813.51,0.00011917,2]
[352653945,1739217089637,-500.0,0.00011917,2]
[352653946,1739217089652,-500.0,0.00011917,2]
[352653947,1739217089667,-500.0,0.00011917,2]
[352653948,1739217089682,-1170.73,0.00011917,2]
[352653949,1739217089697,-1443.11,0.00011917,2]
[352653950,1739217089712,-874.82,0.00011917,2]
[352653951,1739217089727,-500.0,0.00011917,2]
[352653952,1739217089742,-308.32590301,0.00011917,2]
[352653953,1739217089757,-500.0,0.00011917,2]
[352653954,1739217089772,-500.0,0.00011917,2]
[352653955,1739217089787,-828.38,0.00011917,2]
[352653956,1739217089802,-1336.04,0.00011917,2]
[352653957,1739217089818,-1416.68,0.00011917,2]
[352653958,1739217089839,-1370.33,0.00011917,2]
[352653959,1739217089854,-626.36,0.00011917,2]
[352653960,1739217089870,-997.5,0.00011917,2]
[352653961,1739217089887,-1315.41,0.00011917,2]
[352653962,1739217089903,-500.0,0.00011917,2]
[352653963,1739217089918,-1211.22,0.00011917,2]
[352653964,1739217089934,-500.0,0.00011917,2]
[352653965,1739217089948,-500.0,0.00011917,2]
[352653966,1739217089964,-505.87,0.00011917,2]
[352653967,1739217090121,-500.0,0.00011917,2]
[352653968,1739217090161,-500.0,0.00011917,2]
[352653969,1739217090171,-726.19,0.00011917,2]
[352653970,1739217090180,-500.0,0.00011917,2]
[352653971,1739217090190,-806.7,0.00011917,2]
[352653972,1739217090199,-873.16,0.00011917,2]
[352653973,1739217090208,-411.93967844,0.00011917,2]
[352653974,1739217090218,-837.9,0.00011917,2]
[352653975,1739217090228,-831.3,0.00011917,2]
[352653976,1739217090238,-1700.07,0.00011917,2]
[352653977,1739217090247,-452.78,0.00011917,2]
[352653978,1739217090257,-526.93,0.00011917,2]
[352653979,1739217090267,-908.11,0.00011917,2]
[352653980,1739217090276,-500.0,0.00011917,2]
[352653981,1739217090288,-684.98,0.00011917,2]
[352653982,1739217090297,-710.89,0.00011917,2]
[352653983,1739217090306,-500.0,0.00011917,2]
[352653984,1739217090315,-547.9842832,0.00011917,2]
[352653985,1739217090325,-719.92,0.00011917,2]
[352653986,1739217090335,-869.99,0.00011917,2]
[352653987,1739217090345,-500.0,0.00011917,2]
[352653988,1739217090354,-551.41,0.00011917,2]
[352653989,1739217090363,-1051.27,0.00011917,2]
[352653990,1739217090372,-500.0,0.00011917,2]
[352653991,1739217090382,-500.0,0.00011917,2]
[352653992,1739217090392,-548.83,0.00011917,2]
[352653993,1739217090401,-500.0,0.00011917,2]
[352653994,1739217090411,-166.401701,0.00011917,2]
[352653995,1739217090420,-540.44,0.00011917,2]
[352653996,1739217090429,-1096.75,0.00011917,2]
[352653997,1739217090438,-884.26,0.00011917,2]
[352653998,1739217090447,-708.33,0.00011917,2]
[352653999,1739217090456,-765.79,0.00011917,2]
[352654000,1739217090466,-500.0,0.00011917,2]
[352654001,1739217090475,-500.0,0.00011917,2]
[352654002,1739217090485,-888.99,0.00011917,2]
[352654003,1739217090494,-500.0,0.00011917,2]
[352654004,1739217090504,-823.69,0.00011917,2]
[352654005,1739217090513,-500.0,0.00011917,2]
[352654006,1739217090522,-500.0,0.00011917,2]
[352654007,1739217090531,-1307.26,0.00011917,2]
[352654008,1739217090542,-644.78,0.00011917,2]
[352654009,1739217090552,-648.7,0.00011917,2]
[352654010,1739217090565,-878.48,0.00011917,2]
[352654011,1739217090575,-1365.19,0.00011917,2]
[352654012,1739217090584,-500.0,0.00011917,2]
[352654013,1739217090594,-1292.76,0.00011917,2]
[352654014,1739217090603,-1500.35,0.00011917,2]
[352654015,1739217090613,-500.0,0.00011917,2]
[352654016,1739217090623,-828.23,0.00011917,2]
[352654017,1739217090634,-796.75,0.00011917,2]
[352654018,1739217090643,-500.0,0.00011917,2]
[352654019,1739217090652,-500.0,0.00011917,2]
[352654020,1739217090662,-1956.77,0.00011917,2]
[352654021,1739217090671,-500.0,0.00011917,2]
[352654022,1739217090681,-500.0,0.00011917,2]
[352654023,1739217090691,-500.0,0.00011917,2]
[352654024,1739217090700,-500.0,0.00011917,2]
[352654025,1739217090710,-500.0,0.00011917,2]
[352654026,1739217090720,-500.0,0.00011917,2]
[352654027,1739217090729,-797.43,0.00011917,2]
[352654028,1739217090739,-172.56545896,0.00011917,2]
[352654029,1739217090748,-503.81,0.00011917,2]
[352654030,1739217090758,-688.07,0.00011917,2]
[352654031,1739217090767,-500.0,0.00011917,2]
[352654032,1739217090779,-1205.84,0.00011917,2]
[352654033,1739217090788,-806.41,0.00011917,2]
[352654034,1739217090798,-597.61202114,0.00011917,2]
[352654035,1739217090808,-500.0,0.00011917,2]
[352654036,1739217090817,-500.0,0.00011917,2]
[352654037,1739217090827,-500.0,0.00011917,2]
[352654038,1739217090836,-735.56,0.00011917,2]
[352654039,1739217090846,-798.49,0.00011917,2]
[352654040,1739217090856,-847.34,0.00011917,2]
[352654041,1739217090865,-500.0,0.00011917,2]
[352654042,1739217090875,-548.6,0.00011917,2]
[352654043,1739217090884,-671.06,0.00011917,2]
[352654044,1739217090894,-500.0,0.00011917,2]
[352654045,1739217090904,-857.26,0.00011917,2]
[352654046,1739217090914,-805.28,0.00011917,2]
[352654047,1739217090924,-737.36,0.00011917,2]
[352654048,1739217090935,-500.0,0.00011917,2]
[352654049,1739217090944,-686.24,0.00011917,2]
[352654050,1739217090954,-899.13,0.00011917,2]
[352654051,1739217090964,-752.18,0.00011917,2]
[352654052,1739217090973,-500.0,0.00011917,2]
[352654053,1739217090983,-500.0,0.00011917,2]
[352654054,1739217090992,-492.22408323,0.00011917,2]
[352654055,1739217091002,-500.0,0.00011917,2]
[352654056,1739217091011,-939.92,0.00011917,2]
[352654057,1739217091020,-817.55,0.00011917,2]
[352654058,1739217091030,-993.53,0.00011917,2]
[352654059,1739217091040,-903.04,0.00011917,2]
[352654060,1739217091049,-1409.06,0.00011917,2]
[352654061,1739217091058,-646.34,0.00011917,2]
[352654062,1739217091068,-525.71,0.00011917,2]
[352654063,1739217091077,-813.76,0.00011917,2]
[352654064,1739217091086,-835.08,0.00011917,2]
[352654065,1739217091095,-500.0,0.00011917,2]